[Event "*** Titled Tuesday Blitz"]
[Site "Chess.com"]
[Date "2021.03.16"]
[Round "4"]
[White "Vasily85"]
[Black "grzechu96"]
[Result "1/2-1/2"]
[WhiteElo "2439"]
[BlackElo "2641"]
[TimeControl "180+1"]
[EndTime "10:38:33 PDT"]
[Termination "Game drawn by repetition"]

1. d4 {[%clk 0:03:00.9]} 1... Nf6 {[%clk 0:02:58.4]} 2. Bg5 {[%clk 0:03:01]}
2... d5 {[%clk 0:02:57.2]} 3. Bxf6 {[%clk 0:03:00.7]} 3... exf6 {[%clk
0:02:57.9]} 4. e3 {[%clk 0:03:01.6]} 4... Bd6 {[%clk 0:02:56]} 5. g3 {[%clk
0:03:01.2]} 5... c6 {[%clk 0:02:52.9]} 6. Bg2 {[%clk 0:03:01.5]} 6... f5 {[%clk
0:02:52.5]} 7. Ne2 {[%clk 0:03:02]} 7... Nd7 {[%clk 0:02:52.5]} 8. Nd2 {[%clk
0:03:00.6]} 8... Nf6 {[%clk 0:02:52.1]} 9. c4 {[%clk 0:03:00.8]} 9... Be6 {[%clk
0:02:50.8]} 10. b3 {[%clk 0:02:37.6]} 10... O-O {[%clk 0:02:49.7]} 11. O-O
{[%clk 0:02:37]} 11... Ne4 {[%clk 0:02:48.5]} 12. Qc2 {[%clk 0:02:25.5]} 12...
g6 {[%clk 0:02:40.6]} 13. c5 {[%clk 0:02:19.6]} 13... Bc7 {[%clk 0:02:40.3]} 14.
b4 {[%clk 0:02:19.9]} 14... h5 {[%clk 0:02:35.5]} 15. h4 {[%clk 0:02:19.5]}
15... Kg7 {[%clk 0:01:47.4]} 16. a4 {[%clk 0:02:11.7]} 16... Nxd2 {[%clk
0:01:37.3]} 17. Qxd2 {[%clk 0:02:11.6]} 17... g5 {[%clk 0:01:37.9]} 18. hxg5
{[%clk 0:02:02.1]} 18... Qxg5 {[%clk 0:01:38.8]} 19. Nf4 {[%clk 0:02:02.3]}
19... h4 {[%clk 0:01:38]} 20. Bf3 {[%clk 0:01:54.8]} 20... hxg3 {[%clk 0:01:36]}
21. fxg3 {[%clk 0:01:55.7]} 21... Qxg3+ {[%clk 0:01:34.9]} 22. Qg2 {[%clk
0:01:35.5]} 22... Qxg2+ {[%clk 0:01:31.9]} 23. Kxg2 {[%clk 0:01:36.4]} 23... Kf6
{[%clk 0:01:32.1]} 24. Rh1 {[%clk 0:01:34.7]} 24... Rg8+ {[%clk 0:01:10.5]} 25.
Kf2 {[%clk 0:01:34.4]} 25... Rh8 {[%clk 0:01:10.4]} 26. b5 {[%clk 0:01:31.2]}
26... a6 {[%clk 0:00:28.8]} 27. b6 {[%clk 0:01:17.7]} 27... Bxf4 {[%clk
0:00:28.5]} 28. exf4 {[%clk 0:01:18.6]} 28... Rag8 {[%clk 0:00:27.4]} 29. Rxh8
{[%clk 0:01:11.2]} 29... Rxh8 {[%clk 0:00:27.4]} 30. Rh1 {[%clk 0:01:12]} 30...
Rxh1 {[%clk 0:00:26.3]} 31. Bxh1 {[%clk 0:01:12.9]} 31... Bc8 {[%clk 0:00:25.8]}
32. a5 {[%clk 0:01:12.8]} 32... Bd7 {[%clk 0:00:25.6]} 33. Kg3 {[%clk
0:01:13.2]} 33... Kg6 {[%clk 0:00:24.5]} 34. Kh4 {[%clk 0:01:13.5]} 34... Be6
{[%clk 0:00:20.3]} 35. Bf3 {[%clk 0:01:13.8]} 35... Bd7 {[%clk 0:00:20.4]} 36.
Bh5+ {[%clk 0:01:13.7]} 36... Kf6 {[%clk 0:00:20.3]} 37. Be2 {[%clk 0:01:14]}
37... Bc8 {[%clk 0:00:20.1]} 38. Kh5 {[%clk 0:01:14.3]} 38... Kg7 {[%clk
0:00:19.2]} 39. Kg5 {[%clk 0:01:14]} 39... f6+ {[%clk 0:00:18.9]} 40. Kh5 {[%clk
0:01:14.3]} 40... Kh7 {[%clk 0:00:19]} 41. Bd3 {[%clk 0:01:13.7]} 41... Kg7
{[%clk 0:00:18.9]} 42. Bc2 {[%clk 0:01:08.2]} 42... Kh7 {[%clk 0:00:18.8]} 43.
Bd1 {[%clk 0:01:08.4]} 43... Kg7 {[%clk 0:00:19.1]} 44. Bf3 {[%clk 0:01:08.7]}
44... Kh7 {[%clk 0:00:18.3]} 45. Be2 {[%clk 0:01:08.9]} 45... Kg7 {[%clk
0:00:18.7]} 46. Kh4 {[%clk 0:01:09.4]} 46... Kh6 {[%clk 0:00:18.9]} 47. Bh5
{[%clk 0:01:09.3]} 47... Kg7 {[%clk 0:00:18.8]} 48. Be8 {[%clk 0:01:09.1]} 48...
Kh6 {[%clk 0:00:18.3]} 49. Bf7 {[%clk 0:01:05.7]} 49... Kg7 {[%clk 0:00:18.3]}
50. Bh5 {[%clk 0:01:06.3]} 50... Bd7 {[%clk 0:00:15.6]} 51. Bf3 {[%clk
0:01:05.2]} 51... Kh6 {[%clk 0:00:14]} 52. Bg2 {[%clk 0:01:05.5]} 52... Bc8
{[%clk 0:00:13]} 53. Bh3 {[%clk 0:01:05.3]} 53... Kg6 {[%clk 0:00:12.6]} 54. Bf1
{[%clk 0:01:04.5]} 54... Kh6 {[%clk 0:00:12.8]} 55. Bd3 {[%clk 0:01:04.4]} 55...
Kg6 {[%clk 0:00:12.7]} 56. Be2 {[%clk 0:01:04.8]} 56... Kh6 {[%clk 0:00:12.4]}
57. Bd3 {[%clk 0:01:05.4]} 57... Kg6 {[%clk 0:00:12.2]} 58. Be2 {[%clk
0:01:06.1]} 58... Kh6 {[%clk 0:00:12.6]} 1/2-1/2

[Event "*** Titled Tuesday Blitz"]
[Site "Chess.com"]
[Date "2021.03.16"]
[Round "4"]
[White "davigator"]
[Black "Szparu"]
[Result "1-0"]
[WhiteElo "2414"]
[BlackElo "2625"]
[TimeControl "180+1"]
[EndTime "10:38:35 PDT"]
[Termination "davigator won on time"]

1. e4 {[%clk 0:03:00.9]} 1... c5 {[%clk 0:02:56.8]} 2. Nf3 {[%clk 0:02:59.7]}
2... Nc6 {[%clk 0:02:54.8]} 3. d4 {[%clk 0:02:59.4]} 3... cxd4 {[%clk
0:02:54.8]} 4. Nxd4 {[%clk 0:02:59.9]} 4... Nf6 {[%clk 0:02:55]} 5. Nc3 {[%clk
0:02:58.9]} 5... d6 {[%clk 0:02:54.4]} 6. Bg5 {[%clk 0:02:55.1]} 6... e6 {[%clk
0:02:53.7]} 7. f3 {[%clk 0:02:54.5]} 7... h6 {[%clk 0:02:29.6]} 8. Be3 {[%clk
0:02:50.2]} 8... Bd7 {[%clk 0:02:25.5]} 9. Qd2 {[%clk 0:02:49.9]} 9... a6 {[%clk
0:02:25]} 10. O-O-O {[%clk 0:02:49]} 10... b5 {[%clk 0:02:24.9]} 11. Nxc6 {[%clk
0:02:46.8]} 11... Bxc6 {[%clk 0:02:24.7]} 12. Ne2 {[%clk 0:02:47.5]} 12... Be7
{[%clk 0:02:19.2]} 13. g4 {[%clk 0:02:42.8]} 13... Rc8 {[%clk 0:02:17.7]} 14.
Nd4 {[%clk 0:02:42.4]} 14... Bb7 {[%clk 0:02:13.3]} 15. h4 {[%clk 0:02:42]}
15... Nd7 {[%clk 0:02:08.2]} 16. Nb3 {[%clk 0:02:33.1]} 16... Ne5 {[%clk
0:02:06.6]} 17. Be2 {[%clk 0:02:31.8]} 17... Nd3+ {[%clk 0:02:06.8]} 18. Bxd3
{[%clk 0:02:30.9]} 18... d5 {[%clk 0:01:47.5]} 19. Kb1 {[%clk 0:02:25.9]} 19...
b4 {[%clk 0:01:45.3]} 20. Qf2 {[%clk 0:02:22.2]} 20... Qc7 {[%clk 0:01:36.9]}
21. Bb6 {[%clk 0:02:21.4]} 21... Qb8 {[%clk 0:01:31.9]} 22. g5 {[%clk
0:02:10.6]} 22... h5 {[%clk 0:01:03.3]} 23. Bc5 {[%clk 0:01:46.2]} 23... Bd8
{[%clk 0:00:58.8]} 24. Bxb4 {[%clk 0:01:44.3]} 24... Bc6 {[%clk 0:00:49.5]} 25.
Bc3 {[%clk 0:01:43]} 25... O-O {[%clk 0:00:46.3]} 26. Qd4 {[%clk 0:01:41]} 26...
f6 {[%clk 0:00:44.7]} 27. Bxa6 {[%clk 0:01:36.6]} 27... e5 {[%clk 0:00:40.9]}
28. Qb4 {[%clk 0:01:35.2]} 28... d4 {[%clk 0:00:38.7]} 29. Bxc8 {[%clk 0:01:33]}
29... Qxc8 {[%clk 0:00:38.6]} 30. Bd2 {[%clk 0:01:30.5]} 30... Qe6 {[%clk
0:00:22.2]} 31. Na5 {[%clk 0:01:28.5]} 31... Bxa5 {[%clk 0:00:20.7]} 32. Qxa5
{[%clk 0:01:28]} 32... Ra8 {[%clk 0:00:21.3]} 33. gxf6 {[%clk 0:01:21.9]} 33...
Rxa5 {[%clk 0:00:20.4]} 34. Bxa5 {[%clk 0:01:22.2]} 34... Qxf6 {[%clk 0:00:13]}
35. Rdf1 {[%clk 0:01:18.6]} 35... Bb5 {[%clk 0:00:12.6]} 36. Rf2 {[%clk
0:01:18.7]} 36... d3 {[%clk 0:00:12.9]} 37. cxd3 {[%clk 0:01:19.1]} 37... Bxd3+
{[%clk 0:00:12.8]} 38. Ka1 {[%clk 0:01:20]} 38... Bxe4 {[%clk 0:00:13.4]} 39.
Rhh2 {[%clk 0:01:17.5]} 39... Bxf3 {[%clk 0:00:12.4]} 40. Bc3 {[%clk 0:01:16.8]}
40... Qg6 {[%clk 0:00:05]} 41. b3 {[%clk 0:01:14]} 41... e4 {[%clk 0:00:04.6]}
42. Rf1 {[%clk 0:01:07.1]} 42... Qg3 {[%clk 0:00:04.4]} 43. Rd2 {[%clk
0:01:04.1]} 43... Bg2 {[%clk 0:00:03.3]} 44. Rc1 {[%clk 0:01:01.7]} 44... e3
{[%clk 0:00:03]} 45. Rd7 {[%clk 0:01:00.7]} 45... Qxh4 {[%clk 0:00:01.7]} 46.
Rxg7+ {[%clk 0:01:00.4]} 46... Kf8 {[%clk 0:00:02]} 47. Rxg2 {[%clk 0:01:01]}
47... Qf4 {[%clk 0:00:02]} 48. Re2 {[%clk 0:00:54.9]} 48... Qf3 {[%clk
0:00:02.1]} 49. Rce1 {[%clk 0:00:54.9]} 49... h4 {[%clk 0:00:02.4]} 50. Rxe3
{[%clk 0:00:54.5]} 50... Qc6 {[%clk 0:00:02.9]} 51. Rf1+ {[%clk 0:00:52.7]}
51... Kg8 {[%clk 0:00:03.1]} 52. Ref3 {[%clk 0:00:52.8]} 52... Qe6 {[%clk
0:00:01.6]} 53. R3f2 {[%clk 0:00:48.6]} 1-0

[Event "*** Titled Tuesday Blitz"]
[Site "Chess.com"]
[Date "2021.03.16"]
[Round "4"]
[White "Kobalia"]
[Black "eCztery"]
[Result "1-0"]
[WhiteElo "2730"]
[BlackElo "2402"]
[TimeControl "180+1"]
[EndTime "10:38:37 PDT"]
[Termination "Kobalia won by resignation"]

1. e4 {[%clk 0:03:00]} 1... c5 {[%clk 0:02:53.4]} 2. Nf3 {[%clk 0:02:59.5]} 2...
g6 {[%clk 0:02:52.6]} 3. c3 {[%clk 0:02:58.7]} 3... Bg7 {[%clk 0:02:47.3]} 4. d4
{[%clk 0:02:58]} 4... cxd4 {[%clk 0:02:48.2]} 5. cxd4 {[%clk 0:02:57.7]} 5...
Nf6 {[%clk 0:02:46.9]} 6. e5 {[%clk 0:02:46.6]} 6... Nd5 {[%clk 0:02:43.6]} 7.
Bc4 {[%clk 0:02:45.3]} 7... Nb6 {[%clk 0:02:36.4]} 8. Bb3 {[%clk 0:02:44.8]}
8... d5 {[%clk 0:02:31.3]} 9. O-O {[%clk 0:02:43.7]} 9... O-O {[%clk 0:02:30.8]}
10. h3 {[%clk 0:02:43.6]} 10... Nc6 {[%clk 0:02:30.8]} 11. Nc3 {[%clk
0:02:42.7]} 11... Bf5 {[%clk 0:02:10.9]} 12. Re1 {[%clk 0:02:41.5]} 12... Rc8
{[%clk 0:02:09.8]} 13. Bf4 {[%clk 0:02:39.5]} 13... Na5 {[%clk 0:02:09.4]} 14.
g4 {[%clk 0:02:33.4]} 14... Be6 {[%clk 0:01:55.5]} 15. Bc2 {[%clk 0:02:24.8]}
15... Nac4 {[%clk 0:01:53.5]} 16. Qc1 {[%clk 0:02:23.7]} 16... Qc7 {[%clk
0:01:50.2]} 17. Nb5 {[%clk 0:02:03]} 17... Qb8 {[%clk 0:01:45.8]} 18. a4 {[%clk
0:01:58.2]} 18... a6 {[%clk 0:01:42.2]} 19. Nc3 {[%clk 0:01:57.4]} 19... Qc7
{[%clk 0:01:38.7]} 20. Nd1 {[%clk 0:01:19.3]} 20... Nxe5 {[%clk 0:01:07.3]} 21.
Bxe5 {[%clk 0:01:11.1]} 21... Qxc2 {[%clk 0:01:06.7]} 22. Qe3 {[%clk 0:01:10.4]}
22... Nc4 {[%clk 0:01:01.6]} 23. Qf4 {[%clk 0:01:09.9]} 23... Nxe5 {[%clk
0:00:59.3]} 24. Nxe5 {[%clk 0:01:08.8]} 24... Qc7 {[%clk 0:00:41.8]} 25. Nc3
{[%clk 0:01:06.3]} 25... f5 {[%clk 0:00:22.3]} 26. g5 {[%clk 0:00:48]} 26... Bf7
{[%clk 0:00:22.6]} 27. Qg3 {[%clk 0:00:42]} 27... e6 {[%clk 0:00:22.9]} 28. Rac1
{[%clk 0:00:40.1]} 28... Qb6 {[%clk 0:00:19.8]} 29. Qe3 {[%clk 0:00:33.8]} 29...
Qxb2 {[%clk 0:00:16.5]} 30. Nxd5 {[%clk 0:00:22.2]} 30... exd5 {[%clk
0:00:12.7]} 31. Rxc8 {[%clk 0:00:20.6]} 31... Rxc8 {[%clk 0:00:10.9]} 32. Nxf7
{[%clk 0:00:18.5]} 32... Qxd4 {[%clk 0:00:11.1]} 33. Nh6+ {[%clk 0:00:16.6]}
33... Bxh6 {[%clk 0:00:04.7]} 34. Qxd4 {[%clk 0:00:16]} 34... Bxg5 {[%clk
0:00:01.7]} 35. Qxd5+ {[%clk 0:00:15.9]} 35... Kg7 {[%clk 0:00:00.7]} 36. Qd7+
{[%clk 0:00:15]} 36... Kh6 {[%clk 0:00:01.4]} 37. Qxc8 {[%clk 0:00:15.2]} 1-0

[Event "*** Titled Tuesday Blitz"]
[Site "Chess.com"]
[Date "2021.03.16"]
[Round "4"]
[White "Kurkusha"]
[Black "RamyresCoelho"]
[Result "0-1"]
[WhiteElo "2340"]
[BlackElo "2085"]
[TimeControl "180+1"]
[EndTime "10:38:39 PDT"]
[Termination "RamyresCoelho won by checkmate"]

1. Nf3 {[%clk 0:03:00.9]} 1... Nf6 {[%clk 0:02:58.8]} 2. c4 {[%clk 0:02:58.8]}
2... g6 {[%clk 0:02:58.8]} 3. Nc3 {[%clk 0:02:56.6]} 3... Bg7 {[%clk 0:02:59.7]}
4. g3 {[%clk 0:02:50.6]} 4... O-O {[%clk 0:03:00.6]} 5. Bg2 {[%clk 0:02:47.3]}
5... d6 {[%clk 0:03:01.5]} 6. d4 {[%clk 0:02:47.3]} 6... Nc6 {[%clk 0:03:02.4]}
7. O-O {[%clk 0:02:47]} 7... Bg4 {[%clk 0:03:02.6]} 8. Bg5 {[%clk 0:02:42]} 8...
Qd7 {[%clk 0:03:01.4]} 9. Qd2 {[%clk 0:02:41.4]} 9... Bh3 {[%clk 0:02:52.5]} 10.
Rfe1 {[%clk 0:02:40.1]} 10... Bxg2 {[%clk 0:02:52.4]} 11. Kxg2 {[%clk
0:02:40.6]} 11... e5 {[%clk 0:02:40.8]} 12. dxe5 {[%clk 0:02:28.9]} 12... dxe5
{[%clk 0:02:31.3]} 13. Bxf6 {[%clk 0:02:20.8]} 13... Qxd2 {[%clk 0:02:30.7]} 14.
Nxd2 {[%clk 0:02:21.6]} 14... Bxf6 {[%clk 0:02:30.2]} 15. Nde4 {[%clk 0:02:19]}
15... Bg7 {[%clk 0:02:30.4]} 16. Nd5 {[%clk 0:02:18.2]} 16... f5 {[%clk
0:02:27.3]} 17. Nc5 {[%clk 0:02:17.5]} 17... e4 {[%clk 0:02:21.2]} 18. Rab1
{[%clk 0:02:14.7]} 18... Ne5 {[%clk 0:02:09.1]} 19. Nxc7 {[%clk 0:01:45.8]}
19... Rac8 {[%clk 0:02:05.5]} 20. N7e6 {[%clk 0:01:46.2]} 20... Rfe8 {[%clk
0:01:43.5]} 21. Nxg7 {[%clk 0:01:38.8]} 21... Kxg7 {[%clk 0:01:44.4]} 22. Nxb7
{[%clk 0:01:38.5]} 22... Nxc4 {[%clk 0:01:39.4]} 23. b3 {[%clk 0:01:33.4]} 23...
Na3 {[%clk 0:01:30.4]} 24. Rbc1 {[%clk 0:01:33.4]} 24... Rxc1 {[%clk 0:01:26.9]}
25. Rxc1 {[%clk 0:01:34.3]} 25... Re7 {[%clk 0:01:27.5]} 26. Nd6 {[%clk
0:01:33.3]} 26... Rd7 {[%clk 0:01:17]} 27. Nc4 {[%clk 0:01:30.7]} 27... Nxc4
{[%clk 0:01:15.9]} 28. Rxc4 {[%clk 0:01:31.6]} 28... Rd2 {[%clk 0:01:15.3]} 29.
Ra4 {[%clk 0:01:31.4]} 29... Rxe2 {[%clk 0:01:14.9]} 30. Rxa7+ {[%clk
0:01:31.4]} 30... Kh6 {[%clk 0:01:15.6]} 31. Kf1 {[%clk 0:01:31.8]} 31... Rb2
{[%clk 0:01:13.3]} 32. h4 {[%clk 0:01:31.8]} 32... Kh5 {[%clk 0:01:06.1]} 33. a4
{[%clk 0:00:30.9]} 33... Kg4 {[%clk 0:01:02.6]} 34. Kg2 {[%clk 0:00:20.5]} 34...
e3 {[%clk 0:00:57.8]} 35. Kg1 {[%clk 0:00:16.5]} 35... Rxf2 {[%clk 0:00:55.6]}
36. Re7 {[%clk 0:00:15.3]} 36... Kf3 {[%clk 0:00:52.3]} 37. a5 {[%clk 0:00:15]}
37... Rg2+ {[%clk 0:00:51.8]} 38. Kf1 {[%clk 0:00:14.7]} 38... Rh2 {[%clk
0:00:42.1]} 39. Kg1 {[%clk 0:00:14.1]} 39... Rb2 {[%clk 0:00:35.2]} 40. a6
{[%clk 0:00:13.7]} 40... Rxb3 {[%clk 0:00:28.8]} 41. a7 {[%clk 0:00:13.8]} 41...
Ra3 {[%clk 0:00:28.8]} 42. h5 {[%clk 0:00:11.3]} 42... Kxg3 {[%clk 0:00:26.8]}
43. Rxh7 {[%clk 0:00:08.8]} 43... g5 {[%clk 0:00:25.9]} 44. Re7 {[%clk
0:00:07.6]} 44... Ra1# {[%clk 0:00:25.7]} 0-1

[Event "*** Titled Tuesday Blitz"]
[Site "Chess.com"]
[Date "2021.03.16"]
[Round "4"]
[White "LamaChampetre"]
[Black "zverr1"]
[Result "0-1"]
[WhiteElo "2234"]
[BlackElo "2466"]
[TimeControl "180+1"]
[EndTime "10:38:43 PDT"]
[Termination "zverr1 won on time"]

1. d4 {[%clk 0:03:00.9]} 1... Nf6 {[%clk 0:02:58.1]} 2. c4 {[%clk 0:03:00.5]}
2... g6 {[%clk 0:02:53.7]} 3. Nc3 {[%clk 0:02:59.7]} 3... Bg7 {[%clk 0:02:51.5]}
4. e4 {[%clk 0:02:59.8]} 4... d6 {[%clk 0:02:48.2]} 5. h3 {[%clk 0:03:00.3]}
5... O-O {[%clk 0:02:46.8]} 6. Nf3 {[%clk 0:03:00.6]} 6... e5 {[%clk 0:02:46.6]}
7. d5 {[%clk 0:02:59.9]} 7... Nh5 {[%clk 0:02:46.7]} 8. g3 {[%clk 0:02:59.2]}
8... Qe8 {[%clk 0:02:38.8]} 9. Be2 {[%clk 0:02:54.9]} 9... Na6 {[%clk
0:02:34.8]} 10. Be3 {[%clk 0:02:43]} 10... Bd7 {[%clk 0:02:13]} 11. Nd2 {[%clk
0:02:35.6]} 11... Nf6 {[%clk 0:02:08.2]} 12. g4 {[%clk 0:02:35.2]} 12... Qe7
{[%clk 0:01:58.6]} 13. h4 {[%clk 0:02:31.2]} 13... Nxg4 {[%clk 0:01:39.1]} 14.
Bxg4 {[%clk 0:02:28]} 14... f5 {[%clk 0:01:38.6]} 15. Bg5 {[%clk 0:01:37.1]}
15... Qf7 {[%clk 0:01:33.1]} 16. exf5 {[%clk 0:01:34.3]} 16... h6 {[%clk
0:01:32.8]} 17. Be3 {[%clk 0:01:26.1]} 17... gxf5 {[%clk 0:01:24.8]} 18. Bh5
{[%clk 0:01:25]} 18... Qe7 {[%clk 0:01:25.3]} 19. f3 {[%clk 0:00:52.7]} 19...
Nb4 {[%clk 0:01:09.7]} 20. Nb3 {[%clk 0:00:42]} 20... e4 {[%clk 0:01:02.9]} 21.
fxe4 {[%clk 0:00:29.5]} 21... fxe4 {[%clk 0:00:54.9]} 22. Be2 {[%clk 0:00:25.9]}
22... Bf6 {[%clk 0:00:36.3]} 23. Rg1+ {[%clk 0:00:20.3]} 23... Kh8 {[%clk
0:00:36.8]} 24. Qd2 {[%clk 0:00:16]} 24... Nd3+ {[%clk 0:00:26]} 25. Bxd3 {[%clk
0:00:14.9]} 25... exd3 {[%clk 0:00:26.9]} 26. Qxd3 {[%clk 0:00:14.7]} 26... Rae8
{[%clk 0:00:27.2]} 27. Kd2 {[%clk 0:00:14.6]} 27... Bxh4 {[%clk 0:00:24.8]} 28.
Nd4 {[%clk 0:00:11.7]} 28... Bg5 {[%clk 0:00:19.3]} 29. Bxg5 {[%clk 0:00:10.3]}
29... Rf2+ {[%clk 0:00:19.8]} 30. Nde2 {[%clk 0:00:09.6]} 30... hxg5 {[%clk
0:00:16.6]} 31. Rh1+ {[%clk 0:00:09.3]} 31... Kg8 {[%clk 0:00:17.2]} 32. Rag1
{[%clk 0:00:08.1]} 32... Bf5 {[%clk 0:00:11.5]} 33. Qg3 {[%clk 0:00:02.6]} 33...
Rxe2+ {[%clk 0:00:11.5]} 34. Nxe2 {[%clk 0:00:01.1]} 34... Qxe2+ {[%clk
0:00:12.4]} 35. Kc3 {[%clk 0:00:01.3]} 35... Re3+ {[%clk 0:00:08.8]} 0-1

[Event "*** Titled Tuesday Blitz"]
[Site "Chess.com"]
[Date "2021.03.16"]
[Round "4"]
[White "GM4life"]
[Black "Fighter008"]
[Result "0-1"]
[WhiteElo "2329"]
[BlackElo "2629"]
[TimeControl "180+1"]
[EndTime "10:38:45 PDT"]
[Termination "Fighter008 won by checkmate"]

1. e4 {[%clk 0:03:00.9]} 1... c5 {[%clk 0:02:59.9]} 2. Nf3 {[%clk 0:02:59.7]}
2... e6 {[%clk 0:03:00.4]} 3. d4 {[%clk 0:02:59.7]} 3... cxd4 {[%clk 0:03:01.3]}
4. Nxd4 {[%clk 0:03:00.4]} 4... a6 {[%clk 0:03:02.2]} 5. c4 {[%clk 0:03:00.2]}
5... Nf6 {[%clk 0:03:01.2]} 6. Nc3 {[%clk 0:03:00]} 6... Qc7 {[%clk 0:03:01.4]}
7. a3 {[%clk 0:02:57.8]} 7... b6 {[%clk 0:03:01.6]} 8. Be3 {[%clk 0:02:57.6]}
8... Bb7 {[%clk 0:03:01.9]} 9. f3 {[%clk 0:02:58.1]} 9... d6 {[%clk 0:03:01.9]}
10. Be2 {[%clk 0:02:58.5]} 10... Be7 {[%clk 0:03:02.3]} 11. O-O {[%clk
0:02:59.3]} 11... Nbd7 {[%clk 0:03:01.5]} 12. Rc1 {[%clk 0:03:00.2]} 12... Rc8
{[%clk 0:03:01.6]} 13. Qd2 {[%clk 0:03:00.3]} 13... Qb8 {[%clk 0:03:01.9]} 14.
b4 {[%clk 0:02:59.8]} 14... Bd8 {[%clk 0:03:02.2]} 15. Rfd1 {[%clk 0:02:56.1]}
15... Bc7 {[%clk 0:03:02.3]} 16. Nb3 {[%clk 0:02:51.6]} 16... h5 {[%clk
0:02:57.8]} 17. Bf4 {[%clk 0:02:48.8]} 17... Ne5 {[%clk 0:02:56.4]} 18. Bxe5
{[%clk 0:02:48.6]} 18... dxe5 {[%clk 0:02:57.3]} 19. c5 {[%clk 0:02:49.5]} 19...
O-O {[%clk 0:02:54.7]} 20. Qe3 {[%clk 0:02:42.6]} 20... Qa7 {[%clk 0:02:43.2]}
21. Na4 {[%clk 0:02:22.8]} 21... b5 {[%clk 0:02:31.6]} 22. Nb6 {[%clk
0:02:22.6]} 22... Rcd8 {[%clk 0:02:30.7]} 23. Na5 {[%clk 0:02:13]} 23... g6
{[%clk 0:02:13.5]} 24. Kh1 {[%clk 0:01:56.9]} 24... Kg7 {[%clk 0:02:13.3]} 25.
h4 {[%clk 0:01:29.7]} 25... Qb8 {[%clk 0:01:53]} 26. c6 {[%clk 0:01:01.3]} 26...
Rxd1+ {[%clk 0:01:35.4]} 27. Bxd1 {[%clk 0:01:00.9]} 27... Bc8 {[%clk
0:01:33.5]} 28. Nxc8 {[%clk 0:00:58.2]} 28... Qxc8 {[%clk 0:01:34.4]} 29. Nb7
{[%clk 0:00:53.4]} 29... Ne8 {[%clk 0:01:24.8]} 30. Qc5 {[%clk 0:00:48.5]} 30...
Qb8 {[%clk 0:01:19.1]} 31. Qe7 {[%clk 0:00:41.3]} 31... Nf6 {[%clk 0:01:02.4]}
32. Rc2 {[%clk 0:00:26.7]} 32... Rc8 {[%clk 0:00:45.5]} 33. Rc3 {[%clk
0:00:19.1]} 33... Qa7 {[%clk 0:00:43.1]} 34. Nd6 {[%clk 0:00:16.6]} 34... Rf8
{[%clk 0:00:28.6]} 35. Rc5 {[%clk 0:00:16.3]} 35... Qb8 {[%clk 0:00:20.5]} 36.
Nb7 {[%clk 0:00:08.4]} 36... Re8 {[%clk 0:00:18.3]} 37. Qd7 {[%clk 0:00:08.1]}
37... Nxd7 {[%clk 0:00:16.6]} 38. cxd7 {[%clk 0:00:09]} 38... Rd8 {[%clk
0:00:16.3]} 39. Nxd8 {[%clk 0:00:08.8]} 39... Qxd8 {[%clk 0:00:16.4]} 40. Be2
{[%clk 0:00:09.1]} 40... Qxd7 {[%clk 0:00:15]} 41. Kh2 {[%clk 0:00:10]} 41...
Bb6 {[%clk 0:00:14.1]} 42. Rc2 {[%clk 0:00:08.9]} 42... Qd4 {[%clk 0:00:14]} 43.
Kh3 {[%clk 0:00:09.2]} 43... Qg1 {[%clk 0:00:12.9]} 44. Ra2 {[%clk 0:00:09.4]}
44... Bf2 {[%clk 0:00:11.9]} 45. g3 {[%clk 0:00:09.6]} 45... Qxg3# {[%clk
0:00:11.7]} 0-1

[Event "*** Titled Tuesday Blitz"]
[Site "Chess.com"]
[Date "2021.03.16"]
[Round "4"]
[White "nss13"]
[Black "Julianos82"]
[Result "1-0"]
[WhiteElo "2621"]
[BlackElo "2394"]
[TimeControl "180+1"]
[EndTime "10:38:45 PDT"]
[Termination "nss13 won by resignation"]

1. e4 {[%clk 0:03:00.9]} 1... c5 {[%clk 0:02:59.5]} 2. Nf3 {[%clk 0:03:00.8]}
2... b6 {[%clk 0:02:59.4]} 3. d4 {[%clk 0:03:00.5]} 3... cxd4 {[%clk 0:03:00.3]}
4. Nxd4 {[%clk 0:03:01]} 4... Bb7 {[%clk 0:03:00.9]} 5. Nc3 {[%clk 0:02:52.7]}
5... a6 {[%clk 0:03:00.5]} 6. g3 {[%clk 0:02:41.8]} 6... e6 {[%clk 0:02:55.3]}
7. Bg2 {[%clk 0:02:42.2]} 7... Qc7 {[%clk 0:02:54.9]} 8. O-O {[%clk 0:02:42]}
8... Nf6 {[%clk 0:02:54.1]} 9. Re1 {[%clk 0:02:42.2]} 9... d6 {[%clk 0:02:37.2]}
10. a4 {[%clk 0:02:36]} 10... Nbd7 {[%clk 0:02:35.1]} 11. Bd2 {[%clk 0:02:14.1]}
11... Be7 {[%clk 0:02:34.5]} 12. b3 {[%clk 0:02:13.5]} 12... O-O {[%clk
0:02:33.4]} 13. Na2 {[%clk 0:02:13.4]} 13... d5 {[%clk 0:02:27.3]} 14. exd5
{[%clk 0:02:13.3]} 14... Bxd5 {[%clk 0:02:23.7]} 15. Bxd5 {[%clk 0:02:13.3]}
15... Nxd5 {[%clk 0:02:22.9]} 16. c4 {[%clk 0:02:13.4]} 16... N5f6 {[%clk
0:02:19.8]} 17. Nc3 {[%clk 0:02:07.7]} 17... Bc5 {[%clk 0:02:13.4]} 18. Nf3
{[%clk 0:02:06.5]} 18... Rfd8 {[%clk 0:02:11.7]} 19. Qe2 {[%clk 0:02:06.1]}
19... Nf8 {[%clk 0:02:08.8]} 20. Ne5 {[%clk 0:02:04.5]} 20... Ng6 {[%clk
0:02:05.7]} 21. Nxg6 {[%clk 0:02:04.6]} 21... hxg6 {[%clk 0:02:06.6]} 22. Bf4
{[%clk 0:02:05.2]} 22... Bd6 {[%clk 0:02:04]} 23. Bxd6 {[%clk 0:02:00.1]} 23...
Rxd6 {[%clk 0:02:04.9]} 24. Rad1 {[%clk 0:01:53.4]} 24... Rad8 {[%clk
0:02:04.3]} 25. Rxd6 {[%clk 0:01:53.9]} 25... Rxd6 {[%clk 0:02:04.4]} 26. Rd1
{[%clk 0:01:48.8]} 26... Kf8 {[%clk 0:02:02.2]} 27. h4 {[%clk 0:01:41.3]} 27...
Qd8 {[%clk 0:01:54.4]} 28. b4 {[%clk 0:01:19]} 28... Ke7 {[%clk 0:01:42.3]} 29.
c5 {[%clk 0:01:06.5]} 29... Rxd1+ {[%clk 0:01:38.4]} 30. Nxd1 {[%clk 0:01:06.5]}
30... bxc5 {[%clk 0:01:33.5]} 31. bxc5 {[%clk 0:01:07.4]} 31... Qd5 {[%clk
0:01:25.8]} 32. Qc2 {[%clk 0:01:04]} 32... Qc6 {[%clk 0:01:14.5]} 33. Nb2 {[%clk
0:00:58.7]} 33... Ne4 {[%clk 0:01:05.1]} 34. Nd3 {[%clk 0:00:56.4]} 34... f6
{[%clk 0:00:58.3]} 35. Nb4 {[%clk 0:00:51.7]} 35... Qb7 {[%clk 0:00:26.7]} 36.
Qc4 {[%clk 0:00:20]} 36... Nd2 {[%clk 0:00:18.9]} 37. c6 {[%clk 0:00:20.2]}
37... Qc7 {[%clk 0:00:12.7]} 38. Qc5+ {[%clk 0:00:18.3]} 38... Kf7 {[%clk
0:00:11.8]} 39. Nxa6 {[%clk 0:00:16.8]} 39... Nf3+ {[%clk 0:00:11.8]} 40. Kg2
{[%clk 0:00:15.9]} 40... Ne1+ {[%clk 0:00:10.9]} 41. Kf1 {[%clk 0:00:16.3]}
41... Qd8 {[%clk 0:00:11.2]} 42. Kxe1 {[%clk 0:00:16.1]} 42... Qd3 {[%clk
0:00:11.1]} 43. c7 {[%clk 0:00:15.3]} 43... Qb1+ {[%clk 0:00:10.6]} 44. Ke2
{[%clk 0:00:15.6]} 44... Qc2+ {[%clk 0:00:10.5]} 45. Qxc2 {[%clk 0:00:13.8]} 1-0